bitfinex/quotes_ETHUSD_20241013
["timestamp","ask_amount","ask_price","bid_price","bid_amount"]
[1728862708386,4.84112,2470.6,2470.3,0.12678091]
[1728862708604,4.84112,2470.6,2470.2,1.33648573]
[1728862708809,4.84112,2470.6,2470.3,0.12678075]
[1728862709029,4.84112,2470.6,2470.2,1.33648573]
[1728862709320,4.84112,2470.6,2470.3,0.12678074]
[1728862709489,0.7935,2470.6,2470.3,1.25151022]
[1728862709688,0.7659,2470.8,2470.4,0.09682463]
[1728862709904,4.81328,2470.8,2470.4,0.09682463]
[1728862710545,0.7659,2470.8,2470.4,0.09682463]
[1728862710834,4.04743,2470.7,2470.4,0.09682463]
[1728862711612,0.7659,2470.8,2470.4,0.09682463]
[1728862711809,4.81324,2470.8,2470.4,0.09682463]
[1728862712533,0.7659,2470.8,2470.4,0.09682463]
[1728862712734,4.04744,2470.7,2470.4,0.09682463]
[1728862713799,4.81319,2470.8,2470.4,0.09682463]
[1728862714624,4.04745,2470.7,2470.4,0.09682463]
[1728862717002,4.04745,2470.7,2470.2,4.89548295]
[1728862717204,4.04762,2470.6,2470.3,1.98023961]
[1728862717404,4.04762,2470.6,2470.3,0.096888]
[1728862718851,4.04792,2470.4,2470.3,0.096888]
[1728862719015,4.04792,2470.4,2470.1,1.0540022]
[1728862719016,4.68176792,2470.4,2470.1,1.0540022]
[1728862719359,4.04792,2470.4,2470.2,0.09689505]
[1728862719918,2.29055921,2470.5,2470.0,4.44494105]
[1728862720252,2.29055921,2470.5,2470.1,0.82943933]
[1728862720253,4.84858,2470.5,2470.1,0.82943933]
[1728862720414,4.84858,2470.5,2470.1,0.09689505]
[1728862721120,4.04797,2470.4,2470.1,0.09689505]
[1728862722943,4.84856,2470.5,2470.1,0.09689505]
[1728862723453,4.84856,2470.5,2470.1,1.21015714]
[1728862726855,4.84856,2470.5,2470.1,5.25855714]
[1728862727418,4.84856,2470.5,2470.2,0.12678811]
[1728862727619,4.84857,2470.5,2470.1,5.16166209]
[1728862727831,4.84857,2470.5,2470.2,0.22368318]
[1728862728153,4.84857,2470.5,2470.2,0.09689505]
[1728862734306,4.84857,2470.5,2470.2,1.26129398]
[1728862734510,4.04727,2470.8,2470.4,5.53762921]
[1728862734676,4.04727,2470.8,2470.3,5.53782921]
[1728862734873,4.04718,2470.9,2470.5,0.09079965]
[1728862735183,4.80594,2471.0,2470.6,4.04758]
[1728862735512,4.80594,2471.0,2470.6,0.0907926]
[1728862736704,8.85296,2471.0,2470.6,0.0907926]
[1728862736907,4.80592,2471.0,2470.6,0.0907926]
[1728862737119,4.04719,2470.9,2470.6,0.0907926]
[1728862737580,4.04719,2470.9,2470.4,5.61860762]
[1728862737785,4.04719,2470.9,2470.7,0.09067994]
[1728862737993,4.04719,2470.9,2470.4,5.61860762]
[1728862738194,4.04719,2470.9,2470.8,0.09067994]
[1728862738395,4.04719,2470.9,2470.4,5.61860762]
[1728862738610,4.04719,2470.9,2470.8,0.09067994]
[1728862738825,4.04728,2470.8,2470.4,4.0479]
[1728862739023,4.04728,2470.8,2470.5,0.12677066]
[1728862739176,4.04728,2470.8,2470.4,4.0479]
[1728862739376,4.04728,2470.8,2470.5,0.82993998]
[1728862739676,4.04728,2470.8,2470.6,0.09038422]
[1728862740182,4.04728,2470.8,2470.4,4.0479]
[1728862740480,4.04728,2470.8,2470.5,0.82996277]
[1728862740674,4.04728,2470.8,2470.5,0.09038422]
[1728862742084,8.09463,2470.8,2470.5,0.09038422]
[1728862742416,8.09463,2470.8,2470.3,4.89529295]
[1728862742575,4.04728,2470.8,2470.6,0.09038422]
[1728862742771,4.04728,2470.8,2470.3,4.89529295]
[1728862742975,4.04728,2470.8,2470.7,0.09038422]
[1728862743214,4.04728,2470.8,2470.3,4.89529295]
[1728862743402,4.04728,2470.8,2470.7,0.09038422]
[1728862743588,5.08158792,2470.8,2470.3,4.89529295]
[1728862743787,4.04728,2470.8,2470.7,0.09038422]
[1728862743996,4.04728,2470.8,2470.3,4.89529295]
[1728862744307,4.04728,2470.8,2470.4,1.88509508]
[1728862744617,4.04728,2470.8,2470.5,0.83010107]
[1728862744783,4.04728,2470.8,2470.4,0.09038422]
[1728862745112,4.04728,2470.8,2470.5,0.8301166]
[1728862745313,4.04728,2470.8,2470.4,0.09038422]
[1728862745516,4.04728,2470.8,2470.5,0.83011861]
[1728862745705,4.04728,2470.8,2470.5,0.09038422]
[1728862745904,4.04728,2470.8,2470.3,4.89529295]
[1728862746090,4.04728,2470.8,2470.6,0.09038422]
[1728862746291,4.04728,2470.8,2470.3,6.37582137]
[1728862746292,4.04728,2470.8,2470.3,4.89529295]
[1728862746616,4.04728,2470.8,2470.7,0.09038422]
[1728862746818,4.04728,2470.8,2470.3,4.89529295]
[1728862747007,4.04728,2470.8,2470.7,0.09038422]
[1728862747208,4.04728,2470.8,2470.3,4.89529295]
[1728862747410,4.04728,2470.8,2470.7,0.09038422]
[1728862747596,4.04728,2470.8,2470.3,4.89529295]
[1728862747795,4.04728,2470.8,2470.4,2.08803195]
[1728862748008,4.04728,2470.8,2470.5,0.83014194]
[1728862748206,4.04728,2470.8,2470.4,0.09038422]
[1728862748431,4.04728,2470.8,2470.5,0.83014149]
[1728862748729,4.04728,2470.8,2470.5,0.09038422]
[1728862748935,4.04728,2470.8,2470.3,4.97624449]
[1728862749114,4.04728,2470.8,2470.6,0.09038422]
[1728862749115,4.8479,2470.7,2470.6,0.09038422]
[1728862749439,4.04778,2470.5,2470.1,0.84725295]
[1728862749652,4.04778,2470.5,2470.2,1.88537701]
[1728862749809,4.04778,2470.5,2470.3,0.12678378]
[1728862749997,8.09569,2470.5,2470.1,0.84725295]
[1728862750329,0.7908,2470.4,2470.2,1.88540111]
[1728862750506,0.7908,2470.4,2470.3,0.12678431]
[1728862750710,0.7908,2470.4,2470.3,0.12678636]
[1728862752721,0.7908,2470.4,2470.3,0.12678824]
[1728862753640,4.8388,2470.4,2470.3,0.12678767]
[1728862753837,6.32855921,2470.4,2470.1,0.20286074]
[1728862754041,4.8388,2470.4,2470.2,0.83021414]
[1728862754345,4.8388,2470.4,2470.0,0.84725295]
[1728862754346,0.7908,2470.4,2470.0,4.89581295]
[1728862754512,0.7908,2470.4,2470.1,5.80690578]
[1728862754715,0.7908,2470.4,2470.2,0.83018896]
[1728862754923,0.7908,2470.4,2470.1,4.04841]
[1728862755130,0.7908,2470.4,2470.3,0.09059545]
[1728862755343,0.7908,2470.4,2470.1,4.04841]
[1728862755557,0.7908,2470.4,2470.3,0.09059545]
[1728862755712,0.7908,2470.4,2470.1,4.04841]
[1728862755914,0.7908,2470.4,2470.3,0.09059545]
[1728862756144,0.7908,2470.4,2470.1,4.04841]
[1728862756339,0.7908,2470.4,2470.3,0.09059545]
[1728862756547,0.7908,2470.4,2470.0,4.89582295]
[1728862756753,0.7908,2470.4,2470.3,0.09059545]
[1728862757052,0.7908,2470.4,2470.0,4.89582295]
[1728862757353,0.7908,2470.4,2470.1,1.88518316]
[1728862757558,0.7908,2470.4,2470.2,0.830146]
[1728862757711,0.7908,2470.4,2470.0,6.41635216]
[1728862757908,0.7908,2470.4,2470.3,0.09059545]
[1728862758154,0.7908,2470.4,2470.1,4.04839]
[1728862758447,0.7908,2470.4,2470.3,0.09059545]
[1728862758647,0.7908,2470.4,2470.1,4.04839]
[1728862758854,0.7908,2470.4,2470.3,0.09059545]
[1728862759027,0.7908,2470.4,2470.1,4.04839]
[1728862759226,0.7908,2470.4,2470.3,0.09059545]
[1728862759428,0.7908,2470.4,2470.1,4.04839]
[1728862759629,0.7908,2470.4,2470.3,0.09059545]
[1728862759840,0.7908,2470.4,2470.1,4.04839]
[1728862760038,4.04761,2470.6,2470.3,0.09059545]
[1728862760245,0.7511,2470.6,2470.3,4.04799]
[1728862760541,0.7511,2470.6,2470.4,0.21751917]
[1728862760712,0.7511,2470.6,2470.4,0.09074329]
[1728862762933,4.81656,2470.8,2470.4,0.09074329]
[1728862763430,8.86395,2470.8,2470.4,0.09074329]
[1728862763963,6.30631921,2470.8,2470.4,0.09074329]
[1728862764325,10.35367921,2470.8,2470.4,0.09074329]
[1728862765760,8.86392,2470.8,2470.4,0.09074329]
[1728862768372,6.30631921,2470.8,2470.4,0.09074329]
[1728862768665,4.04749,2470.7,2470.4,0.09074329]
[1728862774646,4.0476,2470.6,2470.4,0.09074329]
[1728862774883,4.0476,2470.6,2470.2,0.20285009]
[1728862775048,4.0476,2470.6,2470.5,0.09059542]
[1728862775582,4.0476,2470.6,2470.2,5.10325659]
[1728862775746,4.0476,2470.6,2470.5,0.09059542]
[1728862775949,4.0476,2470.6,2470.2,5.32419282]
[1728862776146,4.0476,2470.6,2470.5,0.09059542]
[1728862776376,4.0476,2470.6,2470.2,5.32419282]
[1728862776688,4.0476,2470.6,2470.5,0.09059542]
[1728862776846,4.04744,2470.7,2470.2,5.40514835]
[1728862777042,4.04744,2470.7,2470.5,0.09059542]
[1728862777246,4.04744,2470.7,2470.6,0.09059542]
[1728862777650,4.04744,2470.7,2470.3,5.22712405]
[1728862777847,4.04744,2470.7,2470.6,0.09059542]
[1728862778067,4.04744,2470.7,2470.3,4.04808]
[1728862778267,4.04744,2470.7,2470.6,0.09059542]
[1728862778486,4.04744,2470.7,2470.2,4.04824]
[1728862778678,4.04744,2470.7,2470.6,0.09059542]
[1728862778883,4.04744,2470.7,2470.2,6.14688958]
[1728862779082,4.04744,2470.7,2470.6,0.09059542]
[1728862779283,4.04744,2470.7,2470.2,6.06593411]
[1728862779511,4.04744,2470.7,2470.6,0.09059542]
[1728862779922,4.04744,2470.7,2470.3,1.05504837]
[1728862780074,4.04744,2470.7,2470.6,0.09059542]
[1728862780416,4.81656,2470.8,2470.3,5.31394217]
[1728862780633,2.48112389,2471.0,2470.6,0.09059542]
[1728862780795,13.18006389,2471.1,2470.6,0.08094381]
[1728862780982,11.48684,2471.1,2470.7,1.97496065]
[1728862781188,11.48684,2471.1,2470.8,0.1267567]
[1728862781395,7.44,2471.1,2470.7,4.0474]
[1728862781590,11.48679,2471.1,2470.9,0.09060247]
[1728862781827,4.04679,2471.1,2470.6,5.62146109]
[1728862782127,4.04679,2471.1,2471.0,0.09060247]
[1728862782327,4.04679,2471.1,2470.6,4.89470295]
[1728862782527,4.04679,2471.1,2470.7,1.88378702]
[1728862782728,4.04679,2471.1,2471.0,0.09060247]
[1728862783037,4.04679,2471.1,2470.8,0.09060247]
[1728862783237,4.04679,2471.1,2470.6,9.42543643]
[1728862783238,4.04679,2471.1,2470.6,9.34449409]
[1728862783385,4.04679,2471.1,2470.9,0.09060247]
[1728862783732,4.04679,2471.1,2471.0,0.09060247]
[1728862784033,4.04679,2471.1,2470.7,1.05407964]
[1728862784186,4.04679,2471.1,2471.0,0.09060247]
[1728862784532,4.04679,2471.1,2470.6,5.37793642]
[1728862784686,4.04679,2471.1,2471.0,0.09060247]
[1728862785025,4.04679,2471.1,2470.6,4.53068347]
[1728862785316,4.04679,2471.1,2471.0,0.09060247]
[1728862785526,4.04679,2471.1,2470.7,0.70268109]
[1728862785527,4.04679,2471.1,2470.7,0.12675705]
[1728862785727,4.04679,2471.1,2471.0,0.09060247]
[1728862785879,4.04679,2471.1,2470.7,0.12675853]
[1728862786084,4.04679,2471.1,2470.6,4.53068347]
[1728862786284,4.04656,2471.3,2470.7,0.12676136]
[1728862786486,7.44,2471.7,2471.2,5.53635921]
[1728862786763,4.04565,2471.8,2471.2,5.53635921]
[1728862787031,0.7571,2471.9,2471.4,4.04626]
[1728862787186,4.80258,2471.9,2471.4,4.04626]
[1728862787643,2.24685921,2471.9,2471.5,0.09060247]
[1728862787786,4.04563,2471.8,2471.5,0.09060247]
[1728862787984,4.04563,2471.8,2471.3,4.04643]
[1728862788234,4.04563,2471.8,2471.6,0.09060247]
[1728862788527,4.04563,2471.8,2471.3,4.04643]
[1728862788528,6.29232921,2471.9,2471.7,0.09060247]
[1728862789032,6.29232921,2471.9,2471.3,4.04632]
[1728862789232,6.29232921,2471.9,2471.3,5.11786337]
[1728862789645,6.29232921,2471.9,2471.4,0.09060247]
[1728862789940,4.04565,2471.8,2471.4,0.09060247]
[1728862792024,5.53540921,2471.8,2471.4,0.09060247]
[1728862792405,4.04567,2471.8,2471.4,4.13680247]
[1728862792610,5.53542921,2471.8,2471.4,4.69945864]
[1728862793500,5.53542921,2471.8,2471.4,0.65325864]
[1728862799251,5.53542921,2471.8,2471.4,0.09060247]
[1728862800375,0.8115,2471.5,2471.4,0.09060247]
[1728862800615,0.8115,2471.5,2471.1,4.0467]
[1728862800781,0.8115,2471.5,2471.4,0.0899268]
[1728862800937,0.8115,2471.5,2471.1,4.0467]
[1728862801137,2.27775921,2471.7,2471.2,5.00492592]
[1728862801343,2.27775921,2471.7,2471.2,5.00482592]
[1728862801344,0.788,2471.7,2471.2,5.00482592]
[1728862801558,4.83391,2471.7,2471.2,5.00482592]
[1728862801779,0.788,2471.7,2471.2,5.09475272]
[1728862802084,4.04597,2471.6,2471.2,5.09475272]
[1728862802459,4.8338,2471.7,2471.2,9.14128272]
[1728862802846,4.8338,2471.7,2471.2,5.09475272]
[1728862804183,4.04596,2471.6,2471.2,5.09475272]
[1728862804573,4.04596,2471.6,2471.2,1.04825272]
[1728862804889,4.04596,2471.6,2471.2,0.0899268]
[1728862809304,8.09201,2471.6,2471.2,0.0899268]
[1728862809466,4.04596,2471.6,2471.2,0.0899268]
[1728862810075,8.092,2471.6,2471.2,0.0899268]
[1728862810404,4.04596,2471.6,2471.2,0.0899268]
[1728862810700,4.04617,2471.5,2471.0,4.12773792]
[1728862811001,4.04598,2471.6,2471.1,4.04677]
[1728862811300,4.04598,2471.6,2471.1,4.13491066]
[1728862818211,4.04598,2471.6,2471.2,4.04654]
[1728862818367,4.04598,2471.6,2471.2,4.13465252]
[1728862820282,4.04598,2471.6,2471.2,0.08811252]
[1728862822311,4.04598,2471.6,2471.2,4.13470252]
[1728862822610,4.04598,2471.6,2471.2,5.15799966]
[1728862823708,4.04598,2471.6,2471.2,0.08811252]
[1728862824017,1.48975921,2471.3,2471.2,0.08811252]
[1728862824320,1.48975921,2471.3,2470.7,5.09742762]
[1728862824321,4.04686,2471.1,2470.7,1.05062697]
[1728862824475,1.48975921,2470.9,2470.4,4.89507295]
[1728862824685,5.53697921,2470.9,2470.5,5.92710739]
[1728862824873,5.53697921,2470.9,2470.5,4.04774]
[1728862825272,4.04722,2470.9,2470.5,4.04774]
[1728862825622,1.48975921,2470.7,2470.3,4.89528295]
[1728862825776,1.48975921,2470.8,2470.4,0.12677485]
[1728862825983,1.48975921,2470.8,2470.3,4.04803]
[1728862826182,2.28135921,2470.8,2470.3,4.04803]
[1728862826484,4.04744,2470.7,2470.3,4.04803]
[1728862827784,4.04744,2470.7,2470.3,5.10032745]
[1728862827979,2.28135921,2470.8,2470.3,4.04803]
[1728862828217,4.83888,2470.8,2470.3,4.85156788]
[1728862828417,3.0,2471.0,2470.6,1.48975921]
[1728862828716,3.0,2471.0,2470.6,4.04757]
[1728862829080,3.0,2471.0,2470.6,5.53732921]
[1728862829432,3.0,2471.0,2470.6,4.04757]
[1728862829433,7.04695,2471.0,2470.6,4.04757]
[1728862829578,7.04695,2471.0,2470.7,0.07973699]
[1728862831617,7.04695,2471.0,2470.4,9.58545921]
[1728862831808,7.04695,2471.0,2470.8,0.1546024]
[1728862832012,7.04695,2471.0,2470.5,4.04773]
[1728862832315,7.04695,2471.0,2470.9,0.1546024]
[1728862832859,7.04695,2471.0,2470.5,4.12867682]
[1728862833060,7.04695,2471.0,2470.9,0.1546024]
[1728862833259,7.04695,2471.0,2470.5,4.12867682]
[1728862833464,7.04695,2471.0,2470.9,0.1546024]
[1728862833659,7.04695,2471.0,2470.5,4.12867682]
[1728862833959,7.04695,2471.0,2470.9,0.1546024]
[1728862834155,7.04695,2471.0,2470.5,4.12867682]
[1728862834318,4.04711,2470.9,2470.6,0.1546024]
[1728862834961,7.04702,2471.0,2470.6,0.1546024]
[1728862836765,4.04713,2470.9,2470.6,0.1546024]
[1728862841869,4.04713,2470.9,2470.6,0.73190625]
[1728862842078,3.0,2471.0,2470.6,0.73190625]
[1728862842263,7.04699,2471.0,2470.6,0.73190625]
[1728862842773,4.04713,2470.9,2470.6,0.73190625]
[1728862844481,7.04696,2471.0,2470.6,0.73190625]
[1728862844663,4.04715,2470.9,2470.6,0.73190625]
[1728862846781,7.04694,2471.0,2470.6,0.73190625]
[1728862847152,4.04714,2470.9,2470.6,0.73190625]
[1728862848085,4.04671,2471.2,2470.8,1.48975921]
[1728862848293,4.04671,2471.2,2470.8,5.53702921]
[1728862848456,4.04671,2471.2,2470.9,0.15536953]
[1728862848661,4.04682,2471.1,2470.9,0.15536953]
[1728862848847,4.04682,2471.1,2470.7,2.12478645]
[1728862848848,4.04682,2471.1,2470.7,2.20572554]
[1728862849048,4.04682,2471.1,2471.0,0.15536953]
[1728862849245,4.04682,2471.1,2470.8,1.03008155]
[1728862849478,4.04682,2471.1,2471.0,0.15536953]
[1728862849674,4.04682,2471.1,2470.8,1.03008155]
[1728862849987,4.04671,2471.2,2470.8,1.03008155]
[1728862849988,8.09347,2471.2,2470.8,1.03008155]
[1728862850284,8.09347,2471.2,2470.9,0.15536953]
[1728862850653,4.04671,2471.2,2470.9,0.83571747]
[1728862851056,8.09346,2471.2,2470.9,0.83571747]
[1728862851275,8.09346,2471.2,2470.9,0.15536953]
[1728862851771,4.04679,2471.1,2470.9,0.15536953]
[1728862852471,4.04671,2471.2,2470.9,0.15536953]
[1728862853909,8.09347,2471.2,2470.9,0.15536953]
[1728862854460,4.0468,2471.1,2470.9,0.15536953]
[1728862854969,4.0468,2471.1,2470.7,1.48975921]
[1728862855168,4.0468,2471.1,2470.8,0.70896575]
[1728862856584,4.04671,2471.2,2470.8,0.70896575]
[1728862856786,4.04679,2471.1,2470.8,0.70896575]
[1728862862423,4.04679,2471.1,2470.8,0.15524283]
[1728862862586,4.04679,2471.1,2470.6,5.53722921]
[1728862862782,4.04679,2471.1,2470.9,0.15524283]
[1728862863013,4.04679,2471.1,2470.6,5.53722921]
[1728862863209,4.04679,2471.1,2471.0,0.15161532]
[1728862863406,4.04679,2471.1,2470.6,5.53722921]
[1728862863612,4.04679,2471.1,2471.0,0.15161532]
[1728862863929,4.04698,2471.0,2470.6,4.04747]
[1728862864130,4.04717,2470.9,2470.5,5.09977182]
[1728862864282,4.04717,2470.9,2470.6,0.82810394]
[1728862864485,4.04717,2470.9,2470.5,4.04775]
[1728862864730,4.04717,2470.9,2470.6,0.82827328]
[1728862864937,4.04717,2470.9,2470.5,4.91395364]
[1728862865126,4.04717,2470.9,2470.4,4.89516295]
[1728862865425,4.04717,2470.9,2470.5,1.88085099]
[1728862865642,4.04717,2470.9,2470.4,6.58774563]
[1728862865950,4.04717,2470.9,2470.5,3.37093436]
[1728862866259,4.04717,2470.9,2470.6,0.12676418]
[1728862866416,4.04717,2470.9,2470.5,5.53744921]
[1728862866762,4.04717,2470.9,2470.6,0.82878987]
[1728862866959,4.04717,2470.9,2470.5,6.92830421]
[1728862867160,4.04717,2470.9,2470.6,0.12676303]
[1728862867357,4.04717,2470.9,2470.5,6.92830421]
[1728862867563,4.04717,2470.9,2470.6,0.82891279]
[1728862867860,4.04717,2470.9,2470.5,6.92830421]
[1728862868062,4.04717,2470.9,2470.6,0.702195]
[1728862868224,4.04717,2470.9,2470.6,0.2535293]
[1728862868449,4.04717,2470.9,2470.6,0.12676465]
[1728862869196,4.04717,2470.9,2470.7,0.12676227]
[1728862869485,4.04717,2470.9,2470.6,0.12676465]
[1728862869654,4.04717,2470.9,2470.7,0.82941307]
[1728862869987,4.04717,2470.9,2470.5,7.77555716]
[1728862870183,4.04717,2470.9,2470.6,2.08616012]
[1728862870388,4.04717,2470.9,2470.7,1.88341014]
[1728862870591,4.04717,2470.9,2470.8,0.12676071]
[1728862870752,4.04717,2470.9,2470.6,0.20281847]
[1728862870953,4.04717,2470.9,2470.7,0.82943906]
[1728862871292,4.04717,2470.9,2470.5,6.38470216]
[1728862871499,4.04717,2470.9,2470.6,2.08642293]
[1728862871792,4.04717,2470.9,2470.7,1.88360404]
[1728862871955,4.04717,2470.9,2470.8,0.12676181]
[1728862872184,4.04717,2470.9,2470.8,0.12676168]
[1728862872395,4.04717,2470.9,2470.5,7.8048747]
[1728862872702,4.81869,2471.1,2470.6,7.62374269]
[1728862872854,4.81869,2471.1,2470.7,3.28562756]
[1728862873055,8.86557,2471.1,2470.8,0.12676273]
[1728862873259,4.04688,2471.1,2470.6,6.38452216]
[1728862873487,8.09375,2471.1,2470.7,1.88344605]
[1728862873793,8.09375,2471.1,2470.8,0.8294318]
[1728862873998,8.09375,2471.1,2470.7,1.48975921]
[1728862874293,8.09375,2471.1,2470.8,0.82944162]
[1728862874471,8.09375,2471.1,2470.7,1.48975921]
[1728862874688,8.09375,2471.1,2470.9,0.15169961]
[1728862874890,8.09375,2471.1,2470.8,0.15173473]
[1728862875070,4.04687,2471.1,2470.7,1.48975921]
[1728862875266,1.69322389,2471.4,2470.9,1.64149394]
[1728862875505,4.04619,2471.5,2471.1,1.48975921]
[1728862875687,4.04606,2471.6,2471.3,1.48975921]
[1728862876057,4.04606,2471.6,2471.4,0.15173473]
[1728862877269,4.04606,2471.6,2471.2,5.53634921]
[1728862877572,4.04606,2471.6,2471.2,6.84688156]
[1728862877903,4.04606,2471.6,2471.3,0.15173473]
[1728862878197,4.81731,2471.7,2471.3,0.15173473]
[1728862878952,4.81731,2471.7,2471.3,1.64149394]
[1728862879394,4.81731,2471.7,2471.3,0.15173473]
[1728862879596,4.81731,2471.7,2471.3,1.64149394]
[1728862880490,4.81731,2471.7,2471.3,0.15173473]
[1728862881275,4.81731,2471.7,2471.3,0.85968156]
[1728862881676,4.81731,2471.7,2471.3,2.34944077]
[1728862882398,3.7649,2472.0,2471.5,1.48975921]
[1728862882710,7.44,2472.1,2471.8,1.48975921]
[1728862883000,4.80989,2472.2,2471.8,2.05139576]
[1728862883299,4.80989,2472.2,2471.9,0.15141868]
[1728862884380,4.0453,2472.1,2471.6,5.53568921]
[1728862884578,4.0453,2472.1,2471.5,4.04602]
[1728862884811,4.04542,2472.0,2471.6,1.48975921]
[1728862885011,4.04542,2472.0,2471.6,1.64052482]
[1728862885902,4.0453,2472.1,2471.7,1.48975921]
[1728862886608,4.0453,2472.1,2471.8,0.15076561]
[1728862886823,4.0453,2472.1,2471.7,1.48975921]
[1728862887114,4.0453,2472.1,2471.9,0.15076561]
[1728862887283,4.0453,2472.1,2471.8,0.55355692]
[1728862887487,4.0453,2472.1,2472.0,0.15076561]
[1728862887815,8.09055,2472.1,2472.0,0.15076561]
[1728862888014,4.04525,2472.1,2471.8,0.55355692]
[1728862888311,4.04525,2472.1,2472.0,0.15076561]
[1728862888476,4.04525,2472.1,2471.8,0.55355692]
[1728862888675,4.80988,2472.2,2472.0,0.15076561]
[1728862888878,4.80988,2472.2,2471.9,0.20433161]
[1728862889107,4.80988,2472.2,2472.1,0.15076561]
[1728862889292,4.80988,2472.2,2471.9,0.20433161]
[1728862889494,4.80988,2472.2,2472.1,0.15076561]
[1728862889684,4.80988,2472.2,2471.9,0.20433161]
[1728862889890,4.80988,2472.2,2472.1,0.15076561]
[1728862890090,4.80988,2472.2,2471.9,0.20433161]
[1728862890292,4.80988,2472.2,2472.1,0.15076561]
[1728862890516,4.80988,2472.2,2471.9,0.20433161]
[1728862890718,4.80988,2472.2,2472.1,0.15076561]
[1728862891320,4.80988,2472.2,2471.8,0.55355692]
[1728862891476,4.80988,2472.2,2472.1,0.15076561]
[1728862891680,4.80988,2472.2,2471.8,4.59918692]
[1728862891976,4.80988,2472.2,2471.9,0.60889461]
[1728862892200,4.04466,2472.4,2472.0,1.64052482]
[1728862892380,4.04462,2472.5,2472.2,1.48975921]
[1728862892603,7.44,2472.6,2472.2,5.53470921]
[1728862892604,11.48433,2472.6,2472.2,5.53470921]
[1728862892919,4.04465,2472.4,2472.3,0.15076561]
[1728862893614,4.04465,2472.4,2471.9,6.14399382]
[1728862893925,4.82495,2472.4,2472.3,0.15076561]
[1728862894082,4.04491,2472.3,2471.8,6.08892613]
[1728862894290,4.04502,2472.2,2471.9,1.01345961]
[1728862894624,4.04515,2472.1,2471.6,5.53569921]
[1728862894983,4.04515,2472.1,2471.7,1.48975921]
[1728862895620,4.82545,2472.1,2471.6,5.53569921]
[1728862895818,4.82545,2472.1,2471.7,1.48975921]
[1728862896027,4.82545,2472.1,2471.7,2.48907357]
[1728862896509,4.82545,2472.1,2471.7,0.99931436]
[1728862896712,4.04539,2472.0,2471.5,4.45744435]
[1728862896913,4.04556,2471.9,2471.5,0.41142435]
[1728862897225,4.04556,2471.9,2471.5,1.90118356]
[1728862898123,4.04556,2471.9,2471.5,1.48975921]
[1728862898328,4.04556,2471.9,2471.3,4.04634]
[1728862898329,4.04563,2471.8,2471.3,4.04634]
[1728862898537,4.04592,2471.7,2471.3,0.404634]
[1728862898849,4.82413,2471.8,2471.3,5.94071321]
[1728862899009,4.04588,2471.7,2471.3,1.89439321]
[1728862899603,4.04588,2471.7,2471.3,5.94084321]
[1728862901537,4.04588,2471.7,2471.3,1.89439321]
[1728862901740,4.04588,2471.7,2471.3,0.404634]
[1728862902271,4.04588,2471.7,2471.2,1.98378091]
[1728862902539,4.046,2471.6,2471.2,6.03038091]
[1728862904504,4.046,2471.6,2471.3,1.48975921]
[1728862904710,4.046,2471.6,2471.3,0.14533992]
[1728862904945,4.046,2471.6,2471.3,1.63509913]
[1728862905245,0.7785,2471.8,2471.3,6.70375521]
[1728862905447,0.7785,2471.8,2471.4,5.61689201]
[1728862905632,4.04561,2471.9,2471.4,5.76235127]
[1728862906869,8.09122,2471.9,2471.4,4.19166926]
[1728862907266,8.09122,2471.9,2471.4,5.3079876]
[1728862908069,4.04561,2471.9,2471.4,5.3079876]
[1728862908262,4.04561,2471.9,2471.4,6.79774681]
[1728862909147,8.09117,2471.9,2471.4,6.79774681]
[1728862909851,4.0456,2471.9,2471.4,0.14545926]
[1728862910052,4.04605,2471.6,2471.1,5.53642921]
[1728862910371,4.04605,2471.6,2471.5,0.13585216]
[1728862910549,4.79963,2471.7,2471.1,5.53642921]
[1728862910749,4.04596,2471.6,2471.5,0.13585916]
[1728862910963,4.04623,2471.5,2470.9,4.047]
[1728862911291,4.04663,2471.2,2470.8,0.41568995]
[1728862911450,0.7538,2471.2,2470.8,4.54387595]
[1728862911771,4.04647,2471.3,2470.9,0.4543876]
[1728862912006,4.04647,2471.3,2470.9,1.94414681]
[1728862912336,4.80018,2471.4,2470.9,5.99111681]
[1728862912573,8.84658,2471.4,2470.9,5.99111681]
[1728862912768,8.84658,2471.4,2471.0,1.48975921]
[1728862912947,8.84659,2471.4,2471.0,1.48975921]
[1728862913158,4.04645,2471.3,2471.0,1.48975921]
[1728862913357,4.04645,2471.3,2470.9,5.99111681]
[1728862913777,4.80018,2471.4,2471.0,1.00383068]
[1728862914163,8.84661,2471.4,2470.9,5.99111681]
[1728862914363,4.04647,2471.3,2470.9,5.99111681]
[1728862916689,4.80009,2471.4,2470.9,5.99111681]
[1728862917184,8.84647,2471.4,2471.0,1.48975921]
[1728862917359,4.80009,2471.4,2471.0,1.48975921]
[1728862917861,8.84651,2471.4,2471.0,1.48975921]
[1728862918199,4.04649,2471.3,2471.0,1.48975921]
[1728862919163,4.04649,2471.3,2470.9,5.99111681]
[1728862919776,4.04649,2471.3,2471.0,0.13617193]
[1728862921713,0.8329,2471.1,2470.8,5.09907772]
[1728862921903,4.04695,2471.0,2470.7,1.05197981]
[1728862922112,4.04727,2470.8,2470.5,0.84725295]
[1728862922413,8.92753,2470.8,2470.5,0.12676557]
[1728862922619,4.04744,2470.7,2470.4,1.05216845]
[1728862922783,4.88018,2470.8,2470.5,0.1267648]
[1728862923113,4.88018,2470.8,2470.3,5.53773921]
[1728862923272,4.88018,2470.8,2470.4,0.70153781]
[1728862923470,8.92755,2470.8,2470.3,6.58973424]
[1728862923667,4.04767,2470.6,2470.3,1.17876476]
[1728862923908,4.04767,2470.6,2470.2,1.17876476]
[1728862924102,4.04767,2470.6,2470.2,1.05199503]
[1728862924604,4.04767,2470.6,2470.2,0.12677552]
[1728862924836,4.04767,2470.6,2470.1,7.1318516]
[1728862924981,6.37005921,2470.8,2470.2,2.190994]
[1728862924982,4.04744,2470.7,2470.2,2.190994]
[1728862925217,4.04746,2470.7,2470.3,5.53776921]
[1728862926272,4.88018,2470.8,2470.3,9.58575921]
[1728862926516,4.88018,2470.8,2470.3,5.53774921]
[1728862928805,4.04744,2470.7,2470.3,5.53774921]
[1728862929687,0.8329,2470.8,2470.3,5.53774921]
[1728862929891,4.0471,2470.9,2470.4,5.53758921]